{"text_format":"3","workbook":"xlsx","n_sheets":3,"sheets":["Розклад на день","Планувальник подій","Проміжки часу"],"not_rendered":{"defined_names":21},"read":"whole","date_system":"1900"}

{"sheet":"Розклад на день","index":0,"n_rows":76,"n_cols":13,"rows_kept":76,"merged":[[0,1,0,2],[1,1,5,2],[2,12,4,12],[3,7,4,7],[5,12,7,12],[6,1,8,2],[8,12,10,12],[9,7,10,7],[10,1,10,2],[11,12,13,12],[14,12,16,12],[15,7,16,7],[17,12,19,12],[18,1,18,2],[20,12,22,12],[21,7,22,7],[23,12,25,12],[24,1,24,2],[25,1,25,2],[26,7,27,7],[26,12,28,12],[29,12,31,12],[31,7,32,7],[32,12,34,12]]}
[null,"Розклад на день"]
[null,{"$f":"IFERROR(DAY(ЗначенняДати),\"\")","v":24},null,null,"Час",{"$f":"IFERROR(UPPER(TEXT(DATE(РікЗвіту,НомерМісяця,ДеньЗвіту),\"d mmmm yyyy\" )),\"\")","v":"24 ЧЕРВЕНЬ 2022"},null,"ОГЛЯД ТИЖНЯ",{"$nulls":3},"НОТАТКИ АБО СПИСОК СПРАВ"]
[{"$nulls":4},"Час","Опис",null,{"$f":"IFERROR(TEXT(DATEVALUE(ЗначенняДати)+1,\"dddd\"),\"\")","v":"субота"},{"$f":"IFERROR(INDEX(ПланувальникПодій[],MATCH($H$6&\"|\"&ROW(A1),ПланувальникПодій[УНІКАЛЬНЕ ЗНАЧЕННЯ (ОБЧИСЛЮВАНЕ)],0),2),\"\")","v":""},{"$f":"IFERROR(INDEX(ПланувальникПодій[],MATCH($H$6&\"|\"&ROW(A1),ПланувальникПодій[УНІКАЛЬНЕ ЗНАЧЕННЯ (ОБЧИСЛЮВАНЕ)],0),3),\"\")","v":""},null,null,"Забрати речі з хімчистки"]
[{"$nulls":4},{"$f":"'Проміжки часу'!E3","v":"06:00:00"},{"$f":"IFERROR(INDEX(ПланувальникПодій[],MATCH(DATEVALUE(ЗначенняДати)&РозкладНаДень[[#This Row],[Час]],ПідстановкаДатиЙЧасу,0),3),\"\")","v":"Підйом"},null,{"$f":"IFERROR(TEXT(DATEVALUE(ЗначенняДати)+1,\"d\"),\"\")","v":"25"},{"$f":"IFERROR(INDEX(ПланувальникПодій[],MATCH($H$6&\"|\"&ROW(A2),ПланувальникПодій[УНІКАЛЬНЕ ЗНАЧЕННЯ (ОБЧИСЛЮВАНЕ)],0),2),\"\")","v":"06:30:00"},{"$f":"IFERROR(INDEX(ПланувальникПодій[],MATCH($H$6&\"|\"&ROW(A2),ПланувальникПодій[УНІКАЛЬНЕ ЗНАЧЕННЯ (ОБЧИСЛЮВАНЕ)],0),3),\"\")","v":"Сніданок"}]
[{"$nulls":4},{"$f":"'Проміжки часу'!E4","v":"06:15:00"},{"$f":"IFERROR(INDEX(ПланувальникПодій[],MATCH(DATEVALUE(ЗначенняДати)&РозкладНаДень[[#This Row],[Час]],ПідстановкаДатиЙЧасу,0),3),\"\")","v":""},null,null,{"$f":"IFERROR(INDEX(ПланувальникПодій[],MATCH($H$6&\"|\"&ROW(A3),ПланувальникПодій[УНІКАЛЬНЕ ЗНАЧЕННЯ (ОБЧИСЛЮВАНЕ)],0),2),\"\")","v":""},{"$f":"IFERROR(INDEX(ПланувальникПодій[],MATCH($H$6&\"|\"&ROW(A3),ПланувальникПодій[УНІКАЛЬНЕ ЗНАЧЕННЯ (ОБЧИСЛЮВАНЕ)],0),3),\"\")","v":""}]
[{"$nulls":4},{"$f":"'Проміжки часу'!E5","v":"06:30:00"},{"$f":"IFERROR(INDEX(ПланувальникПодій[],MATCH(DATEVALUE(ЗначенняДати)&РозкладНаДень[[#This Row],[Час]],ПідстановкаДатиЙЧасу,0),3),\"\")","v":"Душ"},null,{"$f":"IFERROR(ЗначенняДати+1,\"\")","v":"2022-06-25"},{"$f":"IFERROR(INDEX(ПланувальникПодій[],MATCH($H$6&\"|\"&ROW(A4),ПланувальникПодій[УНІКАЛЬНЕ ЗНАЧЕННЯ (ОБЧИСЛЮВАНЕ)],0),2),\"\")","v":""},{"$f":"IFERROR(INDEX(ПланувальникПодій[],MATCH($H$6&\"|\"&ROW(A4),ПланувальникПодій[УНІКАЛЬНЕ ЗНАЧЕННЯ (ОБЧИСЛЮВАНЕ)],0),3),\"\")","v":""},null,null,"Зателефонувати до кабельної компанії"]
[null,{"$f":"IFERROR(TEXT(ЗначенняДати,\"dddd\"),\"\")","v":"п'ятниця"},null,null,{"$f":"'Проміжки часу'!E6","v":"06:45:00"},{"$f":"IFERROR(INDEX(ПланувальникПодій[],MATCH(DATEVALUE(ЗначенняДати)&РозкладНаДень[[#This Row],[Час]],ПідстановкаДатиЙЧасу,0),3),\"\")","v":""},null,null,{"$f":"IFERROR(INDEX(ПланувальникПодій[],MATCH($H$6&\"|\"&ROW(A5),ПланувальникПодій[УНІКАЛЬНЕ ЗНАЧЕННЯ (ОБЧИСЛЮВАНЕ)],0),2),\"\")","v":""},{"$f":"IFERROR(INDEX(ПланувальникПодій[],MATCH($H$6&\"|\"&ROW(A5),ПланувальникПодій[УНІКАЛЬНЕ ЗНАЧЕННЯ (ОБЧИСЛЮВАНЕ)],0),3),\"\")","v":""}]
[{"$nulls":4},{"$f":"'Проміжки часу'!E7","v":"07:00:00"},{"$f":"IFERROR(INDEX(ПланувальникПодій[],MATCH(DATEVALUE(ЗначенняДати)&РозкладНаДень[[#This Row],[Час]],ПідстановкаДатиЙЧасу,0),3),\"\")","v":""},null,null,{"$f":"IFERROR(INDEX(ПланувальникПодій[],MATCH($H$6&\"|\"&ROW(A6),ПланувальникПодій[УНІКАЛЬНЕ ЗНАЧЕННЯ (ОБЧИСЛЮВАНЕ)],0),2),\"\")","v":""},{"$f":"IFERROR(INDEX(ПланувальникПодій[],MATCH($H$6&\"|\"&ROW(A6),ПланувальникПодій[УНІКАЛЬНЕ ЗНАЧЕННЯ (ОБЧИСЛЮВАНЕ)],0),3),\"\")","v":""}]
[{"$nulls":4},{"$f":"'Проміжки часу'!E8","v":"07:15:00"},{"$f":"IFERROR(INDEX(ПланувальникПодій[],MATCH(DATEVALUE(ЗначенняДати)&РозкладНаДень[[#This Row],[Час]],ПідстановкаДатиЙЧасу,0),3),\"\")","v":""},null,{"$f":"IFERROR(TEXT(DATEVALUE(ЗначенняДати)+2,\"dddd\"),\"\")","v":"неділя"},{"$f":"IFERROR(INDEX(ПланувальникПодій[],MATCH($H$12&\"|\"&ROW(A1),ПланувальникПодій[УНІКАЛЬНЕ ЗНАЧЕННЯ (ОБЧИСЛЮВАНЕ)],0),2),\"\")","v":""},{"$f":"IFERROR(INDEX(ПланувальникПодій[],MATCH($H$12&\"|\"&ROW(A1),ПланувальникПодій[УНІКАЛЬНЕ ЗНАЧЕННЯ (ОБЧИСЛЮВАНЕ)],0),3),\"\")","v":""}]
[{"$nulls":4},{"$f":"'Проміжки часу'!E9","v":"07:30:00"},{"$f":"IFERROR(INDEX(ПланувальникПодій[],MATCH(DATEVALUE(ЗначенняДати)&РозкладНаДень[[#This Row],[Час]],ПідстановкаДатиЙЧасу,0),3),\"\")","v":"Дорога на роботу"},null,{"$f":"IFERROR(TEXT(DATEVALUE(ЗначенняДати)+2,\"d\"),\"\")","v":"26"},{"$f":"IFERROR(INDEX(ПланувальникПодій[],MATCH($H$12&\"|\"&ROW(A2),ПланувальникПодій[УНІКАЛЬНЕ ЗНАЧЕННЯ (ОБЧИСЛЮВАНЕ)],0),2),\"\")","v":""},{"$f":"IFERROR(INDEX(ПланувальникПодій[],MATCH($H$12&\"|\"&ROW(A2),ПланувальникПодій[УНІКАЛЬНЕ ЗНАЧЕННЯ (ОБЧИСЛЮВАНЕ)],0),3),\"\")","v":""}]
[null,"ПЕРЕГЛЯД РОЗКЛАДУ",null,null,{"$f":"'Проміжки часу'!E10","v":"07:45:00"},{"$f":"IFERROR(INDEX(ПланувальникПодій[],MATCH(DATEVALUE(ЗначенняДати)&РозкладНаДень[[#This Row],[Час]],ПідстановкаДатиЙЧасу,0),3),\"\")","v":""},null,null,{"$f":"IFERROR(INDEX(ПланувальникПодій[],MATCH($H$12&\"|\"&ROW(A3),ПланувальникПодій[УНІКАЛЬНЕ ЗНАЧЕННЯ (ОБЧИСЛЮВАНЕ)],0),2),\"\")","v":""},{"$f":"IFERROR(INDEX(ПланувальникПодій[],MATCH($H$12&\"|\"&ROW(A3),ПланувальникПодій[УНІКАЛЬНЕ ЗНАЧЕННЯ (ОБЧИСЛЮВАНЕ)],0),3),\"\")","v":""}]
[{"$nulls":4},{"$f":"'Проміжки часу'!E11","v":"08:00:00"},{"$f":"IFERROR(INDEX(ПланувальникПодій[],MATCH(DATEVALUE(ЗначенняДати)&РозкладНаДень[[#This Row],[Час]],ПідстановкаДатиЙЧасу,0),3),\"\")","v":"Початок зміни"},null,{"$f":"IFERROR(ЗначенняДати+2,\"\")","v":"2022-06-26"},{"$f":"IFERROR(INDEX(ПланувальникПодій[],MATCH($H$12&\"|\"&ROW(A4),ПланувальникПодій[УНІКАЛЬНЕ ЗНАЧЕННЯ (ОБЧИСЛЮВАНЕ)],0),2),\"\")","v":""},{"$f":"IFERROR(INDEX(ПланувальникПодій[],MATCH($H$12&\"|\"&ROW(A4),ПланувальникПодій[УНІКАЛЬНЕ ЗНАЧЕННЯ (ОБЧИСЛЮВАНЕ)],0),3),\"\")","v":""}]
[null,"Рік",null,null,{"$f":"'Проміжки часу'!E12","v":"08:15:00"},{"$f":"IFERROR(INDEX(ПланувальникПодій[],MATCH(DATEVALUE(ЗначенняДати)&РозкладНаДень[[#This Row],[Час]],ПідстановкаДатиЙЧасу,0),3),\"\")","v":""},null,null,{"$f":"IFERROR(INDEX(ПланувальникПодій[],MATCH($H$12&\"|\"&ROW(A5),ПланувальникПодій[УНІКАЛЬНЕ ЗНАЧЕННЯ (ОБЧИСЛЮВАНЕ)],0),2),\"\")","v":""},{"$f":"IFERROR(INDEX(ПланувальникПодій[],MATCH($H$12&\"|\"&ROW(A5),ПланувальникПодій[УНІКАЛЬНЕ ЗНАЧЕННЯ (ОБЧИСЛЮВАНЕ)],0),3),\"\")","v":""}]
[{"$nulls":4},{"$f":"'Проміжки часу'!E13","v":"08:30:00"},{"$f":"IFERROR(INDEX(ПланувальникПодій[],MATCH(DATEVALUE(ЗначенняДати)&РозкладНаДень[[#This Row],[Час]],ПідстановкаДатиЙЧасу,0),3),\"\")","v":""},null,null,{"$f":"IFERROR(INDEX(ПланувальникПодій[],MATCH($H$12&\"|\"&ROW(A6),ПланувальникПодій[УНІКАЛЬНЕ ЗНАЧЕННЯ (ОБЧИСЛЮВАНЕ)],0),2),\"\")","v":""},{"$f":"IFERROR(INDEX(ПланувальникПодій[],MATCH($H$12&\"|\"&ROW(A6),ПланувальникПодій[УНІКАЛЬНЕ ЗНАЧЕННЯ (ОБЧИСЛЮВАНЕ)],0),3),\"\")","v":""}]
[null,"Місяць",null,null,{"$f":"'Проміжки часу'!E14","v":"08:45:00"},{"$f":"IFERROR(INDEX(ПланувальникПодій[],MATCH(DATEVALUE(ЗначенняДати)&РозкладНаДень[[#This Row],[Час]],ПідстановкаДатиЙЧасу,0),3),\"\")","v":""},null,{"$f":"IFERROR(TEXT(DATEVALUE(ЗначенняДати)+3,\"dddd\"),\"\")","v":"понеділок"},{"$f":"IFERROR(INDEX(ПланувальникПодій[],MATCH($H$18&\"|\"&ROW(A1),ПланувальникПодій[УНІКАЛЬНЕ ЗНАЧЕННЯ (ОБЧИСЛЮВАНЕ)],0),2),\"\")","v":""},{"$f":"IFERROR(INDEX(ПланувальникПодій[],MATCH($H$18&\"|\"&ROW(A1),ПланувальникПодій[УНІКАЛЬНЕ ЗНАЧЕННЯ (ОБЧИСЛЮВАНЕ)],0),3),\"\")","v":""}]
[{"$nulls":4},{"$f":"'Проміжки часу'!E15","v":"09:00:00"},{"$f":"IFERROR(INDEX(ПланувальникПодій[],MATCH(DATEVALUE(ЗначенняДати)&РозкладНаДень[[#This Row],[Час]],ПідстановкаДатиЙЧасу,0),3),\"\")","v":""},null,{"$f":"IFERROR(TEXT(DATEVALUE(ЗначенняДати)+3,\"d\"),\"\")","v":"27"},{"$f":"IFERROR(INDEX(ПланувальникПодій[],MATCH($H$18&\"|\"&ROW(A2),ПланувальникПодій[УНІКАЛЬНЕ ЗНАЧЕННЯ (ОБЧИСЛЮВАНЕ)],0),2),\"\")","v":""},{"$f":"IFERROR(INDEX(ПланувальникПодій[],MATCH($H$18&\"|\"&ROW(A2),ПланувальникПодій[УНІКАЛЬНЕ ЗНАЧЕННЯ (ОБЧИСЛЮВАНЕ)],0),3),\"\")","v":""}]
[null,"День",null,null,{"$f":"'Проміжки часу'!E16","v":"09:15:00"},{"$f":"IFERROR(INDEX(ПланувальникПодій[],MATCH(DATEVALUE(ЗначенняДати)&РозкладНаДень[[#This Row],[Час]],ПідстановкаДатиЙЧасу,0),3),\"\")","v":""},null,null,{"$f":"IFERROR(INDEX(ПланувальникПодій[],MATCH($H$18&\"|\"&ROW(A3),ПланувальникПодій[УНІКАЛЬНЕ ЗНАЧЕННЯ (ОБЧИСЛЮВАНЕ)],0),2),\"\")","v":""},{"$f":"IFERROR(INDEX(ПланувальникПодій[],MATCH($H$18&\"|\"&ROW(A3),ПланувальникПодій[УНІКАЛЬНЕ ЗНАЧЕННЯ (ОБЧИСЛЮВАНЕ)],0),3),\"\")","v":""}]
[{"$nulls":4},{"$f":"'Проміжки часу'!E17","v":"09:30:00"},{"$f":"IFERROR(INDEX(ПланувальникПодій[],MATCH(DATEVALUE(ЗначенняДати)&РозкладНаДень[[#This Row],[Час]],ПідстановкаДатиЙЧасу,0),3),\"\")","v":""},null,{"$f":"IFERROR(ЗначенняДати+3,\"\")","v":"2022-06-27"},{"$f":"IFERROR(INDEX(ПланувальникПодій[],MATCH($H$18&\"|\"&ROW(A4),ПланувальникПодій[УНІКАЛЬНЕ ЗНАЧЕННЯ (ОБЧИСЛЮВАНЕ)],0),2),\"\")","v":""},{"$f":"IFERROR(INDEX(ПланувальникПодій[],MATCH($H$18&\"|\"&ROW(A4),ПланувальникПодій[УНІКАЛЬНЕ ЗНАЧЕННЯ (ОБЧИСЛЮВАНЕ)],0),3),\"\")","v":""}]
[null,"ЗМІНЕННЯ РОЗКЛАДУ",null,null,{"$f":"'Проміжки часу'!E18","v":"09:45:00"},{"$f":"IFERROR(INDEX(ПланувальникПодій[],MATCH(DATEVALUE(ЗначенняДати)&РозкладНаДень[[#This Row],[Час]],ПідстановкаДатиЙЧасу,0),3),\"\")","v":""},null,null,{"$f":"IFERROR(INDEX(ПланувальникПодій[],MATCH($H$18&\"|\"&ROW(A5),ПланувальникПодій[УНІКАЛЬНЕ ЗНАЧЕННЯ (ОБЧИСЛЮВАНЕ)],0),2),\"\")","v":""},{"$f":"IFERROR(INDEX(ПланувальникПодій[],MATCH($H$18&\"|\"&ROW(A5),ПланувальникПодій[УНІКАЛЬНЕ ЗНАЧЕННЯ (ОБЧИСЛЮВАНЕ)],0),3),\"\")","v":""}]
[{"$nulls":4},{"$f":"'Проміжки часу'!E19","v":"10:00:00"},{"$f":"IFERROR(INDEX(ПланувальникПодій[],MATCH(DATEVALUE(ЗначенняДати)&РозкладНаДень[[#This Row],[Час]],ПідстановкаДатиЙЧасу,0),3),\"\")","v":"Перерва"},null,null,{"$f":"IFERROR(INDEX(ПланувальникПодій[],MATCH($H$18&\"|\"&ROW(A6),ПланувальникПодій[УНІКАЛЬНЕ ЗНАЧЕННЯ (ОБЧИСЛЮВАНЕ)],0),2),\"\")","v":""},{"$f":"IFERROR(INDEX(ПланувальникПодій[],MATCH($H$18&\"|\"&ROW(A6),ПланувальникПодій[УНІКАЛЬНЕ ЗНАЧЕННЯ (ОБЧИСЛЮВАНЕ)],0),3),\"\")","v":""}]
[null,"Виберіть, щоб відредагувати проміжки часу",null,null,{"$f":"'Проміжки часу'!E20","v":"10:15:00"},{"$f":"IFERROR(INDEX(ПланувальникПодій[],MATCH(DATEVALUE(ЗначенняДати)&РозкладНаДень[[#This Row],[Час]],ПідстановкаДатиЙЧасу,0),3),\"\")","v":""},null,{"$f":"IFERROR(TEXT(DATEVALUE(ЗначенняДати)+4,\"dddd\"),\"\")","v":"вівторок"},{"$f":"IFERROR(INDEX(ПланувальникПодій[],MATCH($H$24&\"|\"&ROW(A1),ПланувальникПодій[УНІКАЛЬНЕ ЗНАЧЕННЯ (ОБЧИСЛЮВАНЕ)],0),2),\"\")","v":""},{"$f":"IFERROR(INDEX(ПланувальникПодій[],MATCH($H$24&\"|\"&ROW(A1),ПланувальникПодій[УНІКАЛЬНЕ ЗНАЧЕННЯ (ОБЧИСЛЮВАНЕ)],0),3),\"\")","v":""}]
[{"$nulls":4},{"$f":"'Проміжки часу'!E21","v":"10:30:00"},{"$f":"IFERROR(INDEX(ПланувальникПодій[],MATCH(DATEVALUE(ЗначенняДати)&РозкладНаДень[[#This Row],[Час]],ПідстановкаДатиЙЧасу,0),3),\"\")","v":""},null,{"$f":"IFERROR(TEXT(DATEVALUE(ЗначенняДати)+4,\"d\"),\"\")","v":"28"},{"$f":"IFERROR(INDEX(ПланувальникПодій[],MATCH($H$24&\"|\"&ROW(A2),ПланувальникПодій[УНІКАЛЬНЕ ЗНАЧЕННЯ (ОБЧИСЛЮВАНЕ)],0),2),\"\")","v":""},{"$f":"IFERROR(INDEX(ПланувальникПодій[],MATCH($H$24&\"|\"&ROW(A2),ПланувальникПодій[УНІКАЛЬНЕ ЗНАЧЕННЯ (ОБЧИСЛЮВАНЕ)],0),3),\"\")","v":""}]
[null,"Виберіть, щоб додати нову подію",null,null,{"$f":"'Проміжки часу'!E22","v":"10:45:00"},{"$f":"IFERROR(INDEX(ПланувальникПодій[],MATCH(DATEVALUE(ЗначенняДати)&РозкладНаДень[[#This Row],[Час]],ПідстановкаДатиЙЧасу,0),3),\"\")","v":""},null,null,{"$f":"IFERROR(INDEX(ПланувальникПодій[],MATCH($H$24&\"|\"&ROW(A3),ПланувальникПодій[УНІКАЛЬНЕ ЗНАЧЕННЯ (ОБЧИСЛЮВАНЕ)],0),2),\"\")","v":""},{"$f":"IFERROR(INDEX(ПланувальникПодій[],MATCH($H$24&\"|\"&ROW(A3),ПланувальникПодій[УНІКАЛЬНЕ ЗНАЧЕННЯ (ОБЧИСЛЮВАНЕ)],0),3),\"\")","v":""}]
[{"$nulls":4},{"$f":"'Проміжки часу'!E23","v":"11:00:00"},{"$f":"IFERROR(INDEX(ПланувальникПодій[],MATCH(DATEVALUE(ЗначенняДати)&РозкладНаДень[[#This Row],[Час]],ПідстановкаДатиЙЧасу,0),3),\"\")","v":""},null,{"$f":"IFERROR(ЗначенняДати+4,\"\")","v":"2022-06-28"},{"$f":"IFERROR(INDEX(ПланувальникПодій[],MATCH($H$24&\"|\"&ROW(A4),ПланувальникПодій[УНІКАЛЬНЕ ЗНАЧЕННЯ (ОБЧИСЛЮВАНЕ)],0),2),\"\")","v":""},{"$f":"IFERROR(INDEX(ПланувальникПодій[],MATCH($H$24&\"|\"&ROW(A4),ПланувальникПодій[УНІКАЛЬНЕ ЗНАЧЕННЯ (ОБЧИСЛЮВАНЕ)],0),3),\"\")","v":""}]
[null,"ОСОБЛИВІ ПОДІЇ В РОЗКЛАДІ:",null,null,{"$f":"'Проміжки часу'!E24","v":"11:15:00"},{"$f":"IFERROR(INDEX(ПланувальникПодій[],MATCH(DATEVALUE(ЗначенняДати)&РозкладНаДень[[#This Row],[Час]],ПідстановкаДатиЙЧасу,0),3),\"\")","v":""},null,null,{"$f":"IFERROR(INDEX(ПланувальникПодій[],MATCH($H$24&\"|\"&ROW(A5),ПланувальникПодій[УНІКАЛЬНЕ ЗНАЧЕННЯ (ОБЧИСЛЮВАНЕ)],0),2),\"\")","v":""},{"$f":"IFERROR(INDEX(ПланувальникПодій[],MATCH($H$24&\"|\"&ROW(A5),ПланувальникПодій[УНІКАЛЬНЕ ЗНАЧЕННЯ (ОБЧИСЛЮВАНЕ)],0),3),\"\")","v":""}]
[null,"Перерва",null,null,{"$f":"'Проміжки часу'!E25","v":"11:30:00"},{"$f":"IFERROR(INDEX(ПланувальникПодій[],MATCH(DATEVALUE(ЗначенняДати)&РозкладНаДень[[#This Row],[Час]],ПідстановкаДатиЙЧасу,0),3),\"\")","v":""},null,{"$f":"IFERROR(TEXT(DATEVALUE(ЗначенняДати)+5,\"dddd\"),\"\")","v":"середа"},{"$f":"IFERROR(INDEX(ПланувальникПодій[],MATCH($H$29&\"|\"&ROW(A1),ПланувальникПодій[УНІКАЛЬНЕ ЗНАЧЕННЯ (ОБЧИСЛЮВАНЕ)],0),2),\"\")","v":""},{"$f":"IFERROR(INDEX(ПланувальникПодій[],MATCH($H$29&\"|\"&ROW(A1),ПланувальникПодій[УНІКАЛЬНЕ ЗНАЧЕННЯ (ОБЧИСЛЮВАНЕ)],0),3),\"\")","v":""}]
[{"$nulls":4},{"$f":"'Проміжки часу'!E26","v":"11:45:00"},{"$f":"IFERROR(INDEX(ПланувальникПодій[],MATCH(DATEVALUE(ЗначенняДати)&РозкладНаДень[[#This Row],[Час]],ПідстановкаДатиЙЧасу,0),3),\"\")","v":""},null,{"$f":"IFERROR(TEXT(DATEVALUE(ЗначенняДати)+5,\"d\"),\"\")","v":"29"},{"$f":"IFERROR(INDEX(ПланувальникПодій[],MATCH($H$29&\"|\"&ROW(A2),ПланувальникПодій[УНІКАЛЬНЕ ЗНАЧЕННЯ (ОБЧИСЛЮВАНЕ)],0),2),\"\")","v":""},{"$f":"IFERROR(INDEX(ПланувальникПодій[],MATCH($H$29&\"|\"&ROW(A2),ПланувальникПодій[УНІКАЛЬНЕ ЗНАЧЕННЯ (ОБЧИСЛЮВАНЕ)],0),3),\"\")","v":""}]
[{"$nulls":4},{"$f":"'Проміжки часу'!E27","v":"12:00:00"},{"$f":"IFERROR(INDEX(ПланувальникПодій[],MATCH(DATEVALUE(ЗначенняДати)&РозкладНаДень[[#This Row],[Час]],ПідстановкаДатиЙЧасу,0),3),\"\")","v":"Обід"},null,null,{"$f":"IFERROR(INDEX(ПланувальникПодій[],MATCH($H$29&\"|\"&ROW(A3),ПланувальникПодій[УНІКАЛЬНЕ ЗНАЧЕННЯ (ОБЧИСЛЮВАНЕ)],0),2),\"\")","v":""},{"$f":"IFERROR(INDEX(ПланувальникПодій[],MATCH($H$29&\"|\"&ROW(A3),ПланувальникПодій[УНІКАЛЬНЕ ЗНАЧЕННЯ (ОБЧИСЛЮВАНЕ)],0),3),\"\")","v":""}]
[{"$nulls":4},{"$f":"'Проміжки часу'!E28","v":"12:15:00"},{"$f":"IFERROR(INDEX(ПланувальникПодій[],MATCH(DATEVALUE(ЗначенняДати)&РозкладНаДень[[#This Row],[Час]],ПідстановкаДатиЙЧасу,0),3),\"\")","v":""},null,{"$f":"IFERROR(ЗначенняДати+5,\"\")","v":"2022-06-29"},{"$f":"IFERROR(INDEX(ПланувальникПодій[],MATCH($H$29&\"|\"&ROW(A4),ПланувальникПодій[УНІКАЛЬНЕ ЗНАЧЕННЯ (ОБЧИСЛЮВАНЕ)],0),2),\"\")","v":""},{"$f":"IFERROR(INDEX(ПланувальникПодій[],MATCH($H$29&\"|\"&ROW(A4),ПланувальникПодій[УНІКАЛЬНЕ ЗНАЧЕННЯ (ОБЧИСЛЮВАНЕ)],0),3),\"\")","v":""}]
[{"$nulls":4},{"$f":"'Проміжки часу'!E29","v":"12:30:00"},{"$f":"IFERROR(INDEX(ПланувальникПодій[],MATCH(DATEVALUE(ЗначенняДати)&РозкладНаДень[[#This Row],[Час]],ПідстановкаДатиЙЧасу,0),3),\"\")","v":""},null,null,{"$f":"IFERROR(INDEX(ПланувальникПодій[],MATCH($H$29&\"|\"&ROW(A5),ПланувальникПодій[УНІКАЛЬНЕ ЗНАЧЕННЯ (ОБЧИСЛЮВАНЕ)],0),2),\"\")","v":""},{"$f":"IFERROR(INDEX(ПланувальникПодій[],MATCH($H$29&\"|\"&ROW(A5),ПланувальникПодій[УНІКАЛЬНЕ ЗНАЧЕННЯ (ОБЧИСЛЮВАНЕ)],0),3),\"\")","v":""}]
[{"$nulls":4},{"$f":"'Проміжки часу'!E30","v":"12:45:00"},{"$f":"IFERROR(INDEX(ПланувальникПодій[],MATCH(DATEVALUE(ЗначенняДати)&РозкладНаДень[[#This Row],[Час]],ПідстановкаДатиЙЧасу,0),3),\"\")","v":""},null,{"$f":"IFERROR(TEXT(DATEVALUE(ЗначенняДати)+6,\"dddd\"),\"\")","v":"четвер"},{"$f":"IFERROR(INDEX(ПланувальникПодій[],MATCH($H$34&\"|\"&ROW(A1),ПланувальникПодій[УНІКАЛЬНЕ ЗНАЧЕННЯ (ОБЧИСЛЮВАНЕ)],0),2),\"\")","v":""},{"$f":"IFERROR(INDEX(ПланувальникПодій[],MATCH($H$34&\"|\"&ROW(A1),ПланувальникПодій[УНІКАЛЬНЕ ЗНАЧЕННЯ (ОБЧИСЛЮВАНЕ)],0),3),\"\")","v":""}]
[{"$nulls":4},{"$f":"'Проміжки часу'!E31","v":"13:00:00"},{"$f":"IFERROR(INDEX(ПланувальникПодій[],MATCH(DATEVALUE(ЗначенняДати)&РозкладНаДень[[#This Row],[Час]],ПідстановкаДатиЙЧасу,0),3),\"\")","v":""},null,{"$f":"IFERROR(TEXT(DATEVALUE(ЗначенняДати)+6,\"d\"),\"\")","v":"30"},{"$f":"IFERROR(INDEX(ПланувальникПодій[],MATCH($H$34&\"|\"&ROW(A2),ПланувальникПодій[УНІКАЛЬНЕ ЗНАЧЕННЯ (ОБЧИСЛЮВАНЕ)],0),2),\"\")","v":""},{"$f":"IFERROR(INDEX(ПланувальникПодій[],MATCH($H$34&\"|\"&ROW(A2),ПланувальникПодій[УНІКАЛЬНЕ ЗНАЧЕННЯ (ОБЧИСЛЮВАНЕ)],0),3),\"\")","v":""}]
[{"$nulls":4},{"$f":"'Проміжки часу'!E32","v":"13:15:00"},{"$f":"IFERROR(INDEX(ПланувальникПодій[],MATCH(DATEVALUE(ЗначенняДати)&РозкладНаДень[[#This Row],[Час]],ПідстановкаДатиЙЧасу,0),3),\"\")","v":""},null,null,{"$f":"IFERROR(INDEX(ПланувальникПодій[],MATCH($H$34&\"|\"&ROW(A3),ПланувальникПодій[УНІКАЛЬНЕ ЗНАЧЕННЯ (ОБЧИСЛЮВАНЕ)],0),2),\"\")","v":""},{"$f":"IFERROR(INDEX(ПланувальникПодій[],MATCH($H$34&\"|\"&ROW(A3),ПланувальникПодій[УНІКАЛЬНЕ ЗНАЧЕННЯ (ОБЧИСЛЮВАНЕ)],0),3),\"\")","v":""}]
[{"$nulls":4},{"$f":"'Проміжки часу'!E33","v":"13:30:00"},{"$f":"IFERROR(INDEX(ПланувальникПодій[],MATCH(DATEVALUE(ЗначенняДати)&РозкладНаДень[[#This Row],[Час]],ПідстановкаДатиЙЧасу,0),3),\"\")","v":"Зателефонувати до компанії"},null,{"$f":"IFERROR(ЗначенняДати+6,\"\")","v":"2022-06-30"},{"$f":"IFERROR(INDEX(ПланувальникПодій[],MATCH($H$34&\"|\"&ROW(A4),ПланувальникПодій[УНІКАЛЬНЕ ЗНАЧЕННЯ (ОБЧИСЛЮВАНЕ)],0),2),\"\")","v":""},{"$f":"IFERROR(INDEX(ПланувальникПодій[],MATCH($H$34&\"|\"&ROW(A4),ПланувальникПодій[УНІКАЛЬНЕ ЗНАЧЕННЯ (ОБЧИСЛЮВАНЕ)],0),3),\"\")","v":""}]
[{"$nulls":4},{"$f":"'Проміжки часу'!E34","v":"13:45:00"},{"$f":"IFERROR(INDEX(ПланувальникПодій[],MATCH(DATEVALUE(ЗначенняДати)&РозкладНаДень[[#This Row],[Час]],ПідстановкаДатиЙЧасу,0),3),\"\")","v":""},null,null,{"$f":"IFERROR(INDEX(ПланувальникПодій[],MATCH($H$34&\"|\"&ROW(A5),ПланувальникПодій[УНІКАЛЬНЕ ЗНАЧЕННЯ (ОБЧИСЛЮВАНЕ)],0),2),\"\")","v":""},{"$f":"IFERROR(INDEX(ПланувальникПодій[],MATCH($H$34&\"|\"&ROW(A5),ПланувальникПодій[УНІКАЛЬНЕ ЗНАЧЕННЯ (ОБЧИСЛЮВАНЕ)],0),3),\"\")","v":""}]
[{"$nulls":4},{"$f":"'Проміжки часу'!E35","v":"14:00:00"},{"$f":"IFERROR(INDEX(ПланувальникПодій[],MATCH(DATEVALUE(ЗначенняДати)&РозкладНаДень[[#This Row],[Час]],ПідстановкаДатиЙЧасу,0),3),\"\")","v":""}]
[{"$nulls":4},{"$f":"'Проміжки часу'!E36","v":"14:15:00"},{"$f":"IFERROR(INDEX(ПланувальникПодій[],MATCH(DATEVALUE(ЗначенняДати)&РозкладНаДень[[#This Row],[Час]],ПідстановкаДатиЙЧасу,0),3),\"\")","v":""}]
[{"$nulls":4},{"$f":"'Проміжки часу'!E37","v":"14:30:00"},{"$f":"IFERROR(INDEX(ПланувальникПодій[],MATCH(DATEVALUE(ЗначенняДати)&РозкладНаДень[[#This Row],[Час]],ПідстановкаДатиЙЧасу,0),3),\"\")","v":""}]
[{"$nulls":4},{"$f":"'Проміжки часу'!E38","v":"14:45:00"},{"$f":"IFERROR(INDEX(ПланувальникПодій[],MATCH(DATEVALUE(ЗначенняДати)&РозкладНаДень[[#This Row],[Час]],ПідстановкаДатиЙЧасу,0),3),\"\")","v":""}]
[{"$nulls":4},{"$f":"'Проміжки часу'!E39","v":"15:00:00"},{"$f":"IFERROR(INDEX(ПланувальникПодій[],MATCH(DATEVALUE(ЗначенняДати)&РозкладНаДень[[#This Row],[Час]],ПідстановкаДатиЙЧасу,0),3),\"\")","v":"Перерва"}]
[{"$nulls":4},{"$f":"'Проміжки часу'!E40","v":"15:15:00"},{"$f":"IFERROR(INDEX(ПланувальникПодій[],MATCH(DATEVALUE(ЗначенняДати)&РозкладНаДень[[#This Row],[Час]],ПідстановкаДатиЙЧасу,0),3),\"\")","v":""}]
[{"$nulls":4},{"$f":"'Проміжки часу'!E41","v":"15:30:00"},{"$f":"IFERROR(INDEX(ПланувальникПодій[],MATCH(DATEVALUE(ЗначенняДати)&РозкладНаДень[[#This Row],[Час]],ПідстановкаДатиЙЧасу,0),3),\"\")","v":""}]
[{"$nulls":4},{"$f":"'Проміжки часу'!E42","v":"15:45:00"},{"$f":"IFERROR(INDEX(ПланувальникПодій[],MATCH(DATEVALUE(ЗначенняДати)&РозкладНаДень[[#This Row],[Час]],ПідстановкаДатиЙЧасу,0),3),\"\")","v":""}]
[{"$nulls":4},{"$f":"'Проміжки часу'!E43","v":"16:00:00"},{"$f":"IFERROR(INDEX(ПланувальникПодій[],MATCH(DATEVALUE(ЗначенняДати)&РозкладНаДень[[#This Row],[Час]],ПідстановкаДатиЙЧасу,0),3),\"\")","v":""}]
[{"$nulls":4},{"$f":"'Проміжки часу'!E44","v":"16:15:00"},{"$f":"IFERROR(INDEX(ПланувальникПодій[],MATCH(DATEVALUE(ЗначенняДати)&РозкладНаДень[[#This Row],[Час]],ПідстановкаДатиЙЧасу,0),3),\"\")","v":""}]
[{"$nulls":4},{"$f":"'Проміжки часу'!E45","v":"16:30:00"},{"$f":"IFERROR(INDEX(ПланувальникПодій[],MATCH(DATEVALUE(ЗначенняДати)&РозкладНаДень[[#This Row],[Час]],ПідстановкаДатиЙЧасу,0),3),\"\")","v":""}]
[{"$nulls":4},{"$f":"'Проміжки часу'!E46","v":"16:45:00"},{"$f":"IFERROR(INDEX(ПланувальникПодій[],MATCH(DATEVALUE(ЗначенняДати)&РозкладНаДень[[#This Row],[Час]],ПідстановкаДатиЙЧасу,0),3),\"\")","v":""}]
[{"$nulls":4},{"$f":"'Проміжки часу'!E47","v":"17:00:00"},{"$f":"IFERROR(INDEX(ПланувальникПодій[],MATCH(DATEVALUE(ЗначенняДати)&РозкладНаДень[[#This Row],[Час]],ПідстановкаДатиЙЧасу,0),3),\"\")","v":"Дорога додому"}]
[{"$nulls":4},{"$f":"'Проміжки часу'!E48","v":"17:15:00"},{"$f":"IFERROR(INDEX(ПланувальникПодій[],MATCH(DATEVALUE(ЗначенняДати)&РозкладНаДень[[#This Row],[Час]],ПідстановкаДатиЙЧасу,0),3),\"\")","v":""}]
[{"$nulls":4},{"$f":"'Проміжки часу'!E49","v":"17:30:00"},{"$f":"IFERROR(INDEX(ПланувальникПодій[],MATCH(DATEVALUE(ЗначенняДати)&РозкладНаДень[[#This Row],[Час]],ПідстановкаДатиЙЧасу,0),3),\"\")","v":""}]
[{"$nulls":4},{"$f":"'Проміжки часу'!E50","v":"17:45:00"},{"$f":"IFERROR(INDEX(ПланувальникПодій[],MATCH(DATEVALUE(ЗначенняДати)&РозкладНаДень[[#This Row],[Час]],ПідстановкаДатиЙЧасу,0),3),\"\")","v":""}]
[{"$nulls":4},{"$f":"'Проміжки часу'!E51","v":"18:00:00"},{"$f":"IFERROR(INDEX(ПланувальникПодій[],MATCH(DATEVALUE(ЗначенняДати)&РозкладНаДень[[#This Row],[Час]],ПідстановкаДатиЙЧасу,0),3),\"\")","v":"Тренування з футболу"}]
[{"$nulls":4},{"$f":"'Проміжки часу'!E52","v":"18:15:00"},{"$f":"IFERROR(INDEX(ПланувальникПодій[],MATCH(DATEVALUE(ЗначенняДати)&РозкладНаДень[[#This Row],[Час]],ПідстановкаДатиЙЧасу,0),3),\"\")","v":""}]
[{"$nulls":4},{"$f":"'Проміжки часу'!E53","v":"18:30:00"},{"$f":"IFERROR(INDEX(ПланувальникПодій[],MATCH(DATEVALUE(ЗначенняДати)&РозкладНаДень[[#This Row],[Час]],ПідстановкаДатиЙЧасу,0),3),\"\")","v":""}]
[{"$nulls":4},{"$f":"'Проміжки часу'!E54","v":"18:45:00"},{"$f":"IFERROR(INDEX(ПланувальникПодій[],MATCH(DATEVALUE(ЗначенняДати)&РозкладНаДень[[#This Row],[Час]],ПідстановкаДатиЙЧасу,0),3),\"\")","v":""}]
[{"$nulls":4},{"$f":"'Проміжки часу'!E55","v":"19:00:00"},{"$f":"IFERROR(INDEX(ПланувальникПодій[],MATCH(DATEVALUE(ЗначенняДати)&РозкладНаДень[[#This Row],[Час]],ПідстановкаДатиЙЧасу,0),3),\"\")","v":""}]
[{"$nulls":4},{"$f":"'Проміжки часу'!E56","v":"19:15:00"},{"$f":"IFERROR(INDEX(ПланувальникПодій[],MATCH(DATEVALUE(ЗначенняДати)&РозкладНаДень[[#This Row],[Час]],ПідстановкаДатиЙЧасу,0),3),\"\")","v":""}]
[{"$nulls":4},{"$f":"'Проміжки часу'!E57","v":"19:30:00"},{"$f":"IFERROR(INDEX(ПланувальникПодій[],MATCH(DATEVALUE(ЗначенняДати)&РозкладНаДень[[#This Row],[Час]],ПідстановкаДатиЙЧасу,0),3),\"\")","v":""}]
[{"$nulls":4},{"$f":"'Проміжки часу'!E58","v":"19:45:00"},{"$f":"IFERROR(INDEX(ПланувальникПодій[],MATCH(DATEVALUE(ЗначенняДати)&РозкладНаДень[[#This Row],[Час]],ПідстановкаДатиЙЧасу,0),3),\"\")","v":""}]
[{"$nulls":4},{"$f":"'Проміжки часу'!E59","v":"20:00:00"},{"$f":"IFERROR(INDEX(ПланувальникПодій[],MATCH(DATEVALUE(ЗначенняДати)&РозкладНаДень[[#This Row],[Час]],ПідстановкаДатиЙЧасу,0),3),\"\")","v":""}]
[{"$nulls":4},{"$f":"'Проміжки часу'!E60","v":"20:15:00"},{"$f":"IFERROR(INDEX(ПланувальникПодій[],MATCH(DATEVALUE(ЗначенняДати)&РозкладНаДень[[#This Row],[Час]],ПідстановкаДатиЙЧасу,0),3),\"\")","v":""}]
[{"$nulls":4},{"$f":"'Проміжки часу'!E61","v":"20:30:00"},{"$f":"IFERROR(INDEX(ПланувальникПодій[],MATCH(DATEVALUE(ЗначенняДати)&РозкладНаДень[[#This Row],[Час]],ПідстановкаДатиЙЧасу,0),3),\"\")","v":""}]
[{"$nulls":4},{"$f":"'Проміжки часу'!E62","v":"20:45:00"},{"$f":"IFERROR(INDEX(ПланувальникПодій[],MATCH(DATEVALUE(ЗначенняДати)&РозкладНаДень[[#This Row],[Час]],ПідстановкаДатиЙЧасу,0),3),\"\")","v":""}]
[{"$nulls":4},{"$f":"'Проміжки часу'!E63","v":"21:00:00"},{"$f":"IFERROR(INDEX(ПланувальникПодій[],MATCH(DATEVALUE(ЗначенняДати)&РозкладНаДень[[#This Row],[Час]],ПідстановкаДатиЙЧасу,0),3),\"\")","v":""}]
[{"$nulls":4},{"$f":"'Проміжки часу'!E64","v":""},{"$f":"IFERROR(INDEX(ПланувальникПодій[],MATCH(DATEVALUE(ЗначенняДати)&РозкладНаДень[[#This Row],[Час]],ПідстановкаДатиЙЧасу,0),3),\"\")","v":""}]
[{"$nulls":4},{"$f":"'Проміжки часу'!E65","v":""},{"$f":"IFERROR(INDEX(ПланувальникПодій[],MATCH(DATEVALUE(ЗначенняДати)&РозкладНаДень[[#This Row],[Час]],ПідстановкаДатиЙЧасу,0),3),\"\")","v":""}]
[{"$nulls":4},{"$f":"'Проміжки часу'!E66","v":""},{"$f":"IFERROR(INDEX(ПланувальникПодій[],MATCH(DATEVALUE(ЗначенняДати)&РозкладНаДень[[#This Row],[Час]],ПідстановкаДатиЙЧасу,0),3),\"\")","v":""}]
[{"$nulls":4},{"$f":"'Проміжки часу'!E67","v":""},{"$f":"IFERROR(INDEX(ПланувальникПодій[],MATCH(DATEVALUE(ЗначенняДати)&РозкладНаДень[[#This Row],[Час]],ПідстановкаДатиЙЧасу,0),3),\"\")","v":""}]
[{"$nulls":4},{"$f":"'Проміжки часу'!E68","v":""},{"$f":"IFERROR(INDEX(ПланувальникПодій[],MATCH(DATEVALUE(ЗначенняДати)&РозкладНаДень[[#This Row],[Час]],ПідстановкаДатиЙЧасу,0),3),\"\")","v":""}]
[{"$nulls":4},{"$f":"'Проміжки часу'!E69","v":""},{"$f":"IFERROR(INDEX(ПланувальникПодій[],MATCH(DATEVALUE(ЗначенняДати)&РозкладНаДень[[#This Row],[Час]],ПідстановкаДатиЙЧасу,0),3),\"\")","v":""}]
[{"$nulls":4},{"$f":"'Проміжки часу'!E70","v":""},{"$f":"IFERROR(INDEX(ПланувальникПодій[],MATCH(DATEVALUE(ЗначенняДати)&РозкладНаДень[[#This Row],[Час]],ПідстановкаДатиЙЧасу,0),3),\"\")","v":""}]
[{"$nulls":4},{"$f":"'Проміжки часу'!E71","v":""},{"$f":"IFERROR(INDEX(ПланувальникПодій[],MATCH(DATEVALUE(ЗначенняДати)&РозкладНаДень[[#This Row],[Час]],ПідстановкаДатиЙЧасу,0),3),\"\")","v":""}]
[{"$nulls":4},{"$f":"'Проміжки часу'!E72","v":""},{"$f":"IFERROR(INDEX(ПланувальникПодій[],MATCH(DATEVALUE(ЗначенняДати)&РозкладНаДень[[#This Row],[Час]],ПідстановкаДатиЙЧасу,0),3),\"\")","v":""}]
[{"$nulls":4},{"$f":"'Проміжки часу'!E73","v":""},{"$f":"IFERROR(INDEX(ПланувальникПодій[],MATCH(DATEVALUE(ЗначенняДати)&РозкладНаДень[[#This Row],[Час]],ПідстановкаДатиЙЧасу,0),3),\"\")","v":""}]
[{"$nulls":4},{"$f":"'Проміжки часу'!E74","v":""},{"$f":"IFERROR(INDEX(ПланувальникПодій[],MATCH(DATEVALUE(ЗначенняДати)&РозкладНаДень[[#This Row],[Час]],ПідстановкаДатиЙЧасу,0),3),\"\")","v":""}]
[{"$nulls":4},{"$f":"'Проміжки часу'!E75","v":""},{"$f":"IFERROR(INDEX(ПланувальникПодій[],MATCH(DATEVALUE(ЗначенняДати)&РозкладНаДень[[#This Row],[Час]],ПідстановкаДатиЙЧасу,0),3),\"\")","v":""}]

{"sheet":"Планувальник подій","index":1,"n_rows":15,"n_cols":8,"rows_kept":15,"merged":[[0,1,0,2],[1,1,4,2],[5,1,6,2],[7,1,7,2]]}
[null,"Планувальник подій"]
[null,{"$f":"DAY(ЗначенняДати)","v":24},null,null,"ДАТА","ЧАС","ОПИС","УНІКАЛЬНЕ ЗНАЧЕННЯ (ОБЧИСЛЮВАНЕ)"]
[{"$nulls":4},{"$f":"TODAY()","v":"2022-06-24"},"06:00:00","Підйом",{"$f":"ПланувальникПодій[[#This Row],[ДАТА]]&\"|\"&COUNTIF($E$3:E3,E3)","v":"44736|1"}]
[{"$nulls":4},{"$f":"TODAY()","v":"2022-06-24"},"06:30:00","Душ",{"$f":"ПланувальникПодій[[#This Row],[ДАТА]]&\"|\"&COUNTIF($E$3:E4,E4)","v":"44736|2"}]
[{"$nulls":4},"2022-06-24","07:30:00","Дорога на роботу",{"$f":"ПланувальникПодій[[#This Row],[ДАТА]]&\"|\"&COUNTIF($E$3:E5,E5)","v":"44736|3"}]
[null,{"$f":"TEXT(ЗначенняДати,\"dddd\")","v":"п'ятниця"},null,null,"2022-06-24","08:00:00","Початок зміни",{"$f":"ПланувальникПодій[[#This Row],[ДАТА]]&\"|\"&COUNTIF($E$3:E6,E6)","v":"44736|4"}]
[{"$nulls":4},"2022-06-24","10:00:00","Перерва",{"$f":"ПланувальникПодій[[#This Row],[ДАТА]]&\"|\"&COUNTIF($E$3:E7,E7)","v":"44736|5"}]
[null,{"$f":"ЗначенняДати","v":"24 ЧЕРВЕНЬ 2022"},null,null,"2022-06-24","12:00:00","Обід",{"$f":"ПланувальникПодій[[#This Row],[ДАТА]]&\"|\"&COUNTIF($E$3:E8,E8)","v":"44736|6"}]
[{"$nulls":4},"2022-06-24","13:00:00","Повернення на роботу",{"$f":"ПланувальникПодій[[#This Row],[ДАТА]]&\"|\"&COUNTIF($E$3:E9,E9)","v":"44736|7"}]
[null,"Виберіть, щоб відредагувати проміжки часу",null,null,"2022-06-24","13:30:00","Зателефонувати до компанії",{"$f":"ПланувальникПодій[[#This Row],[ДАТА]]&\"|\"&COUNTIF($E$3:E10,E10)","v":"44736|8"}]
[{"$nulls":4},"2022-06-24","15:00:00","Перерва",{"$f":"ПланувальникПодій[[#This Row],[ДАТА]]&\"|\"&COUNTIF($E$3:E11,E11)","v":"44736|9"}]
[null,"Виберіть, щоб переглянути розклад на день",null,null,"2022-06-24","17:00:00","Дорога додому",{"$f":"ПланувальникПодій[[#This Row],[ДАТА]]&\"|\"&COUNTIF($E$3:E12,E12)","v":"44736|10"}]
[{"$nulls":4},"2022-06-24","18:00:00","Тренування з футболу",{"$f":"ПланувальникПодій[[#This Row],[ДАТА]]&\"|\"&COUNTIF($E$3:E13,E13)","v":"44736|11"}]
[{"$nulls":4},{"$f":"TODAY()+1","v":"2022-06-25"},"06:30:00","Сніданок",{"$f":"ПланувальникПодій[[#This Row],[ДАТА]]&\"|\"&COUNTIF($E$3:E15,E14)","v":"44737|2"}]
[{"$nulls":4},{"$f":"TODAY()+1","v":"2022-06-25"},"07:30:00","Дорога на роботу",{"$f":"ПланувальникПодій[[#This Row],[ДАТА]]&\"|\"&COUNTIF($E$3:E15,E15)","v":"44737|2"}]

{"sheet":"Проміжки часу","index":2,"n_rows":75,"n_cols":5,"rows_kept":75,"merged":[[0,1,0,2],[1,1,1,2],[9,1,9,2]]}
[null,"Проміжки часу"]
[null,"РЕДАГУВАННЯ ТАБЛИЦІ ЧАСУ",null,null,"Час"]
[{"$nulls":4},{"$f":"Час_початку","v":"06:00:00"}]
[null,"Час початку","06:00:00",null,{"$f":"IFERROR(IF($E3+Приріст>ЧасЗавершення,\"\",$E3+Приріст),\"\")","v":"06:15:00"}]
[{"$nulls":4},"06:30:00"]
[null,"Проміжок часу","15 ХВ",null,"06:45:00"]
[{"$nulls":4},"07:00:00"]
[null,"Час завершення","21:00:00",null,"07:15:00"]
[{"$nulls":4},"07:30:00"]
[null,"ПЕРЕГЛЯД РОЗКЛАДУ",null,null,"07:45:00"]
[{"$nulls":4},"08:00:00"]
[null,"Виберіть, щоб переглянути розклад на день",null,null,"08:15:00"]
[{"$nulls":4},"08:30:00"]
[null,"Виберіть, щоб додати нову подію",null,null,"08:45:00"]
[{"$nulls":4},"09:00:00"]
[{"$nulls":4},"09:15:00"]
[{"$nulls":4},"09:30:00"]
[{"$nulls":4},"09:45:00"]
[{"$nulls":4},"10:00:00"]
[{"$nulls":4},"10:15:00"]
[{"$nulls":4},"10:30:00"]
[{"$nulls":4},"10:45:00"]
[{"$nulls":4},"11:00:00"]
[{"$nulls":4},"11:15:00"]
[{"$nulls":4},"11:30:00"]
[{"$nulls":4},"11:45:00"]
[{"$nulls":4},"12:00:00"]
[{"$nulls":4},"12:15:00"]
[{"$nulls":4},"12:30:00"]
[{"$nulls":4},"12:45:00"]
[{"$nulls":4},"13:00:00"]
[{"$nulls":4},"13:15:00"]
[{"$nulls":4},"13:30:00"]
[{"$nulls":4},"13:45:00"]
[{"$nulls":4},"14:00:00"]
[{"$nulls":4},{"$f":"IFERROR(IF($E35+Приріст>ЧасЗавершення,\"\",$E35+Приріст),\"\")","v":"14:15:00"}]
[{"$nulls":4},"14:30:00"]
[{"$nulls":4},"14:45:00"]
[{"$nulls":4},"15:00:00"]
[{"$nulls":4},"15:15:00"]
[{"$nulls":4},"15:30:00"]
[{"$nulls":4},"15:45:00"]
[{"$nulls":4},"16:00:00"]
[{"$nulls":4},"16:15:00"]
[{"$nulls":4},"16:30:00"]
[{"$nulls":4},"16:45:00"]
[{"$nulls":4},"17:00:00"]
[{"$nulls":4},"17:15:00"]
[{"$nulls":4},"17:30:00"]
[{"$nulls":4},"17:45:00"]
[{"$nulls":4},"18:00:00"]
[{"$nulls":4},"18:15:00"]
[{"$nulls":4},"18:30:00"]
[{"$nulls":4},"18:45:00"]
[{"$nulls":4},"19:00:00"]
[{"$nulls":4},"19:15:00"]
[{"$nulls":4},"19:30:00"]
[{"$nulls":4},"19:45:00"]
[{"$nulls":4},"20:00:00"]
[{"$nulls":4},"20:15:00"]
[{"$nulls":4},"20:30:00"]
[{"$nulls":4},"20:45:00"]
[{"$nulls":4},"21:00:00"]
[{"$nulls":4},""]
[{"$nulls":4},""]
[{"$nulls":4},""]
[{"$nulls":4},""]
[{"$nulls":4},{"$f":"IFERROR(IF($E67+Приріст>ЧасЗавершення,\"\",$E67+Приріст),\"\")","v":""}]
[{"$nulls":4},""]
[{"$nulls":4},""]
[{"$nulls":4},""]
[{"$nulls":4},""]
[{"$nulls":4},""]
[{"$nulls":4},""]
[{"$nulls":4},""]